[Event "GrandPrix_30.05"]
[Site "Chess.com"]
[Date "2020.05.30"]
[Round "2"]
[White "grzechu96"]
[Black "payto1"]
[Result "1/2-1/2"]
[WhiteElo "2438"]
[BlackElo "2169"]
[TimeControl "600+2"]
[EndTime "8:52:35 PDT"]
[Termination "Game drawn by stalemate"]

1. e4 {[%clk 0:10:01.9]} 1... Nc6 {[%clk 0:09:58.6]} 2. Nf3 {[%clk 0:10:00.8]}
2... d6 {[%clk 0:09:59.2]} 3. h3 {[%clk 0:09:37.6]} 3... Nf6 {[%clk 0:09:58.9]}
4. Nc3 {[%clk 0:09:34.6]} 4... g6 {[%clk 0:09:59.7]} 5. Bc4 {[%clk 0:09:32.5]}
5... Bg7 {[%clk 0:10:00.6]} 6. O-O {[%clk 0:09:33.2]} 6... e5 {[%clk 0:09:30.8]}
7. a3 {[%clk 0:09:13.8]} 7... O-O {[%clk 0:09:28.9]} 8. d3 {[%clk 0:09:14.8]}
8... h6 {[%clk 0:09:15.3]} 9. Be3 {[%clk 0:09:01.3]} 9... Be6 {[%clk 0:09:05.7]}
10. Bxe6 {[%clk 0:08:25.6]} 10... fxe6 {[%clk 0:09:07.6]} 11. Nh2 {[%clk
0:08:20.9]} 11... Kh7 {[%clk 0:08:47]} 12. Ng4 {[%clk 0:07:43.8]} 12... Nxg4
{[%clk 0:08:07.7]} 13. hxg4 {[%clk 0:07:34]} 13... Nd4 {[%clk 0:07:39.5]} 14. f3
{[%clk 0:07:24.4]} 14... Bf6 {[%clk 0:07:23.4]} 15. Ne2 {[%clk 0:07:21.9]} 15...
Bg5 {[%clk 0:06:32.8]} 16. Bf2 {[%clk 0:04:27.9]} 16... Nc6 {[%clk 0:06:30.8]}
17. c3 {[%clk 0:04:11.8]} 17... Bh4 {[%clk 0:06:25.4]} 18. Be3 {[%clk
0:03:55.7]} 18... Bg5 {[%clk 0:06:25.5]} 19. Qd2 {[%clk 0:03:57.1]} 19... Bxe3+
{[%clk 0:06:06.9]} 20. Qxe3 {[%clk 0:03:59]} 20... Qg5 {[%clk 0:06:08]} 21. Qxg5
{[%clk 0:03:54.3]} 21... hxg5 {[%clk 0:06:09.9]} 22. Kf2 {[%clk 0:03:55]} 22...
Kg7 {[%clk 0:05:58]} 23. b4 {[%clk 0:03:43.5]} 23... a5 {[%clk 0:05:30.8]} 24.
b5 {[%clk 0:03:43.5]} 24... Na7 {[%clk 0:05:31.6]} 25. a4 {[%clk 0:03:44.5]}
25... Nc8 {[%clk 0:05:32.2]} 26. d4 {[%clk 0:03:38.9]} 26... Nb6 {[%clk
0:05:30.1]} 27. Nc1 {[%clk 0:03:28]} 27... d5 {[%clk 0:04:35.5]} 28. exd5 {[%clk
0:03:00.9]} 28... Nxd5 {[%clk 0:04:35.2]} 29. c4 {[%clk 0:01:20.2]} 29... Nf6
{[%clk 0:04:35.6]} 30. Nb3 {[%clk 0:00:41.5]} 30... b6 {[%clk 0:03:36.2]} 31.
Kg3 {[%clk 0:00:37.6]} 31... Rad8 {[%clk 0:02:17.4]} 32. dxe5 {[%clk 0:00:12.7]}
32... Ne4+ {[%clk 0:01:43.2]} 33. fxe4 {[%clk 0:00:13.5]} 33... Rd3+ {[%clk
0:01:43.6]} 34. Rf3 {[%clk 0:00:15]} 34... Rfxf3+ {[%clk 0:01:44.1]} 35. gxf3
{[%clk 0:00:16.9]} 35... Rxb3 {[%clk 0:01:44.9]} 36. Rd1 {[%clk 0:00:18.6]}
36... Rc3 {[%clk 0:01:37.4]} 37. Rd7+ {[%clk 0:00:19.6]} 37... Kh6 {[%clk
0:01:38.2]} 38. Rxc7 {[%clk 0:00:21]} 38... Rxf3+ {[%clk 0:01:37.1]} 39. Kxf3
{[%clk 0:00:11]} 1/2-1/2

[Event "GrandPrix_30.05"]
[Site "Chess.com"]
[Date "2020.05.30"]
[Round "2"]
[White "kpio91"]
[Black "switlave"]
[Result "1-0"]
[WhiteElo "2545"]
[BlackElo "2157"]
[TimeControl "600+2"]
[EndTime "8:52:37 PDT"]
[Termination "kpio91 won by resignation"]

1. d4 {[%clk 0:10:01.9]} 1... Nf6 {[%clk 0:10:00.2]} 2. c4 {[%clk 0:10:02]} 2...
g6 {[%clk 0:10:01.1]} 3. Nf3 {[%clk 0:09:58.5]} 3... Bg7 {[%clk 0:10:00.7]} 4.
g3 {[%clk 0:09:59.6]} 4... O-O {[%clk 0:10:01.2]} 5. Bg2 {[%clk 0:10:00.6]} 5...
d5 {[%clk 0:10:02.6]} 6. cxd5 {[%clk 0:09:58.6]} 6... Nxd5 {[%clk 0:10:04.5]} 7.
O-O {[%clk 0:09:59.2]} 7... Nb6 {[%clk 0:10:05.7]} 8. Nc3 {[%clk 0:09:56.6]}
8... Nc6 {[%clk 0:10:06.5]} 9. e3 {[%clk 0:09:29.4]} 9... Re8 {[%clk 0:10:05.5]}
10. h3 {[%clk 0:09:26.9]} 10... a5 {[%clk 0:08:48.7]} 11. Rb1 {[%clk 0:08:30.3]}
11... a4 {[%clk 0:08:15]} 12. b4 {[%clk 0:08:19.7]} 12... axb3 {[%clk
0:07:46.7]} 13. axb3 {[%clk 0:08:02.8]} 13... e5 {[%clk 0:07:31.9]} 14. d5
{[%clk 0:07:42.7]} 14... e4 {[%clk 0:04:57.8]} 15. dxc6 {[%clk 0:06:58.6]} 15...
Bxc3 {[%clk 0:02:54.3]} 16. Qxd8 {[%clk 0:06:00.4]} 16... Rxd8 {[%clk
0:02:52.7]} 17. Ng5 {[%clk 0:06:01.6]} 17... f5 {[%clk 0:02:36.4]} 18. cxb7
{[%clk 0:05:55.2]} 18... Bxb7 {[%clk 0:02:35.6]} 19. Ne6 {[%clk 0:05:56.7]}
19... Rdc8 {[%clk 0:02:16.5]} 20. Bb2 {[%clk 0:04:59.3]} 20... Bxb2 {[%clk
0:02:07.5]} 21. Rxb2 {[%clk 0:05:00.3]} 21... Bd5 {[%clk 0:01:58.3]} 22. Nc5
{[%clk 0:04:34.8]} 22... Ra3 {[%clk 0:01:49.6]} 23. Rd1 {[%clk 0:04:20.1]} 23...
Rca8 {[%clk 0:01:40.7]} 24. Rdd2 {[%clk 0:03:53.6]} 24... Ra1+ {[%clk
0:01:38.1]} 25. Kh2 {[%clk 0:03:54.5]} 25... c6 {[%clk 0:01:25.6]} 26. g4 {[%clk
0:03:28]} 26... Kf7 {[%clk 0:01:26]} 27. Kg3 {[%clk 0:03:24.5]} 27... Kf6 {[%clk
0:01:18.2]} 28. Rbc2 {[%clk 0:03:16.8]} 28... Rb1 {[%clk 0:01:05.5]} 29. h4
{[%clk 0:02:39.7]} 29... Ke5 {[%clk 0:01:01.4]} 30. h5 {[%clk 0:02:27.5]} 30...
Raa1 {[%clk 0:00:25]} 31. Ra2 {[%clk 0:01:58.8]} 31... Rxa2 {[%clk 0:00:25.6]}
32. Rxa2 {[%clk 0:01:59.7]} 32... gxh5 {[%clk 0:00:24.9]} 33. gxf5 {[%clk
0:01:58.6]} 33... Kxf5 {[%clk 0:00:22.2]} 34. Ra7 {[%clk 0:01:44]} 34... Nc8
{[%clk 0:00:19.2]} 35. Rxh7 {[%clk 0:01:41.6]} 35... Kg5 {[%clk 0:00:19.9]} 36.
Bxe4 {[%clk 0:01:27.1]} 36... Nd6 {[%clk 0:00:14.5]} 37. Bxb1 {[%clk 0:01:27.2]}
1-0

[Event "GrandPrix_30.05"]
[Site "Chess.com"]
[Date "2020.05.30"]
[Round "2"]
[White "Matibar"]
[Black "MasterSonnevanck2"]
[Result "1-0"]
[WhiteElo "2510"]
[BlackElo "2127"]
[TimeControl "600+2"]
[EndTime "8:52:37 PDT"]
[Termination "Matibar won by resignation"]

1. e4 {[%clk 0:10:01.3]} 1... e5 {[%clk 0:10:00]} 2. Nf3 {[%clk 0:10:00.5]} 2...
Nc6 {[%clk 0:10:00.7]} 3. Bb5 {[%clk 0:10:01.5]} 3... a6 {[%clk 0:10:00.3]} 4.
Ba4 {[%clk 0:10:02.5]} 4... Nf6 {[%clk 0:10:01.3]} 5. Nc3 {[%clk 0:10:03.8]}
5... d6 {[%clk 0:09:49.8]} 6. a3 {[%clk 0:09:46.6]} 6... Be7 {[%clk 0:09:39.3]}
7. d3 {[%clk 0:09:47.3]} 7... O-O {[%clk 0:09:38.4]} 8. h3 {[%clk 0:09:48.3]}
8... Be6 {[%clk 0:09:34.1]} 9. O-O {[%clk 0:09:37.6]} 9... b5 {[%clk 0:09:22.6]}
10. Bb3 {[%clk 0:09:38.5]} 10... Bxb3 {[%clk 0:09:10.5]} 11. cxb3 {[%clk
0:09:40.4]} 11... Nd4 {[%clk 0:09:10.7]} 12. Nxd4 {[%clk 0:09:19]} 12... exd4
{[%clk 0:09:10.3]} 13. Ne2 {[%clk 0:09:20.9]} 13... c5 {[%clk 0:09:09.8]} 14.
Bg5 {[%clk 0:08:51.5]} 14... d5 {[%clk 0:08:52.8]} 15. Bxf6 {[%clk 0:07:43.2]}
15... Bxf6 {[%clk 0:08:51.4]} 16. Ng3 {[%clk 0:07:45.1]} 16... dxe4 {[%clk
0:08:40.2]} 17. Nxe4 {[%clk 0:07:46]} 17... Be7 {[%clk 0:08:40.2]} 18. Qf3
{[%clk 0:07:19.4]} 18... Qd7 {[%clk 0:08:18.6]} 19. Rac1 {[%clk 0:07:05.6]}
19... Rac8 {[%clk 0:08:17.3]} 20. Rfe1 {[%clk 0:07:06.8]} 20... Rfe8 {[%clk
0:06:40.3]} 21. Re2 {[%clk 0:07:03.5]} 21... f5 {[%clk 0:06:24]} 22. Ng3 {[%clk
0:06:05]} 22... g6 {[%clk 0:06:22.7]} 23. Rce1 {[%clk 0:06:00.2]} 23... Bf8
{[%clk 0:06:14.9]} 24. Kf1 {[%clk 0:05:25.4]} 24... Rxe2 {[%clk 0:06:13.2]} 25.
Nxe2 {[%clk 0:05:25]} 25... Re8 {[%clk 0:06:02.4]} 26. Nf4 {[%clk 0:05:23.6]}
26... Rxe1+ {[%clk 0:05:59.1]} 27. Kxe1 {[%clk 0:05:25.5]} 27... Qd6 {[%clk
0:05:01.4]} 28. Kd1 {[%clk 0:04:55.4]} 28... Bh6 {[%clk 0:04:40.8]} 29. Qa8+
{[%clk 0:04:41.3]} 29... Qf8 {[%clk 0:04:27.8]} 30. Qd5+ {[%clk 0:04:37.9]}
30... Qf7 {[%clk 0:04:10.1]} 31. Ne6 {[%clk 0:04:32.3]} 31... Bf8 {[%clk
0:04:05.2]} 32. f4 {[%clk 0:04:14.3]} 32... h6 {[%clk 0:04:02.7]} 33. g4 {[%clk
0:04:14.4]} 33... fxg4 {[%clk 0:03:24.5]} 34. hxg4 {[%clk 0:04:14.9]} 34... h5
{[%clk 0:03:19.1]} 35. gxh5 {[%clk 0:04:14.5]} 35... gxh5 {[%clk 0:03:19.2]} 36.
Qg5+ {[%clk 0:03:44.7]} 36... Kh8 {[%clk 0:03:14.7]} 37. Nxf8 {[%clk 0:03:44.5]}
37... Qxf8 {[%clk 0:03:14.4]} 38. Qxh5+ {[%clk 0:03:45.7]} 38... Kg7 {[%clk
0:03:10.6]} 39. Qe5+ {[%clk 0:03:25.5]} 39... Kh7 {[%clk 0:02:43.3]} 40. Qe4+
{[%clk 0:02:09.2]} 40... Kh6 {[%clk 0:02:22.9]} 41. Ke2 {[%clk 0:02:05.5]} 41...
Qf6 {[%clk 0:02:02.5]} 42. Kf3 {[%clk 0:02:05.7]} 42... Qh4 {[%clk 0:01:50.4]}
43. Qe6+ {[%clk 0:01:53.4]} 43... Kh7 {[%clk 0:01:49.1]} 44. Qf5+ {[%clk
0:01:46.1]} 44... Kh8 {[%clk 0:01:44.1]} 45. Ke4 {[%clk 0:01:40]} 45... Qh1+
{[%clk 0:01:31.3]} 46. Ke5 {[%clk 0:01:40.9]} 46... Qe1+ {[%clk 0:01:22.7]} 47.
Kf6 {[%clk 0:01:41.9]} 47... Qh4+ {[%clk 0:01:11.4]} 48. Ke6 {[%clk 0:01:36]}
48... Qe1+ {[%clk 0:01:08.5]} 49. Kf7 {[%clk 0:01:29.2]} 1-0

[Event "GrandPrix_30.05"]
[Site "Chess.com"]
[Date "2020.05.30"]
[Round "2"]
[White "Kopytkin"]
[Black "VojtechPlat"]
[Result "0-1"]
[WhiteElo "2089"]
[BlackElo "2290"]
[TimeControl "600+2"]
[EndTime "8:52:40 PDT"]
[Termination "VojtechPlat won on time"]

1. e4 {[%clk 0:09:54.3]} 1... e5 {[%clk 0:09:58.5]} 2. Nf3 {[%clk 0:09:54.6]}
2... Nc6 {[%clk 0:09:58.9]} 3. d4 {[%clk 0:09:55.7]} 3... exd4 {[%clk
0:09:56.5]} 4. c3 {[%clk 0:09:56.8]} 4... d3 {[%clk 0:09:54.4]} 5. Bxd3 {[%clk
0:09:57]} 5... d6 {[%clk 0:09:55]} 6. h3 {[%clk 0:09:46.3]} 6... Be7 {[%clk
0:09:55.7]} 7. Nbd2 {[%clk 0:09:45.6]} 7... Nf6 {[%clk 0:09:55.7]} 8. Nf1 {[%clk
0:09:46.6]} 8... O-O {[%clk 0:09:55.6]} 9. Ng3 {[%clk 0:09:47.5]} 9... Re8
{[%clk 0:09:55.9]} 10. O-O {[%clk 0:09:47.6]} 10... Bf8 {[%clk 0:09:47.4]} 11.
Re1 {[%clk 0:09:47.5]} 11... g6 {[%clk 0:09:44.4]} 12. Bg5 {[%clk 0:09:42.5]}
12... Bg7 {[%clk 0:09:44.8]} 13. Qd2 {[%clk 0:09:34.7]} 13... Ne5 {[%clk
0:09:32.8]} 14. Nxe5 {[%clk 0:09:09.3]} 14... dxe5 {[%clk 0:09:33.1]} 15. Bb5
{[%clk 0:08:54.4]} 15... Qxd2 {[%clk 0:09:31.1]} 16. Bxd2 {[%clk 0:08:52.6]}
16... Rd8 {[%clk 0:09:29.3]} 17. Bg5 {[%clk 0:08:32.8]} 17... h6 {[%clk
0:09:29.1]} 18. Be3 {[%clk 0:08:32.8]} 18... Be6 {[%clk 0:09:28]} 19. Ba4 {[%clk
0:08:23.3]} 19... a6 {[%clk 0:09:25.6]} 20. Bb3 {[%clk 0:08:21.1]} 20... Bxb3
{[%clk 0:09:20.1]} 21. axb3 {[%clk 0:08:23]} 21... Nd7 {[%clk 0:08:30.2]} 22.
Nf1 {[%clk 0:07:38.9]} 22... Nf8 {[%clk 0:08:29.1]} 23. Nd2 {[%clk 0:07:29.4]}
23... Ne6 {[%clk 0:08:22.6]} 24. Nc4 {[%clk 0:06:59.3]} 24... b6 {[%clk
0:08:06.2]} 25. Red1 {[%clk 0:06:53]} 25... a5 {[%clk 0:08:05.8]} 26. Kf1 {[%clk
0:06:33.7]} 26... Kf8 {[%clk 0:08:05.5]} 27. Ke2 {[%clk 0:06:32.2]} 27... Ke7
{[%clk 0:08:06.1]} 28. Rxd8 {[%clk 0:06:23.3]} 28... Rxd8 {[%clk 0:08:04.9]} 29.
Rd1 {[%clk 0:06:07.8]} 29... Rb8 {[%clk 0:07:58.1]} 30. Rd5 {[%clk 0:05:42.3]}
30... f6 {[%clk 0:07:39.1]} 31. f3 {[%clk 0:04:43]} 31... h5 {[%clk 0:07:34.3]}
32. g3 {[%clk 0:04:01.3]} 32... h4 {[%clk 0:06:08.9]} 33. g4 {[%clk 0:04:00.2]}
33... g5 {[%clk 0:06:09.6]} 34. Rd1 {[%clk 0:03:54.1]} 34... Bf8 {[%clk
0:06:05.5]} 35. Ra1 {[%clk 0:03:01]} 35... Ke8 {[%clk 0:06:02.9]} 36. Rd1 {[%clk
0:02:42]} 36... Ra8 {[%clk 0:05:36.7]} 37. Kf2 {[%clk 0:02:35.3]} 37... Rd8
{[%clk 0:05:14.9]} 38. Rxd8+ {[%clk 0:02:13.4]} 38... Kxd8 {[%clk 0:05:15.6]}
39. Ke2 {[%clk 0:02:07.2]} 39... Bc5 {[%clk 0:05:13.1]} 40. Bc1 {[%clk
0:02:05.9]} 40... Kd7 {[%clk 0:05:13.1]} 41. Na3 {[%clk 0:02:03.5]} 41... Bxa3
{[%clk 0:04:17.7]} 42. bxa3 {[%clk 0:02:03.8]} 42... b5 {[%clk 0:04:02.8]} 43.
Be3 {[%clk 0:01:51.5]} 43... Kc6 {[%clk 0:03:45]} 44. Kd3 {[%clk 0:01:51.2]}
44... Kd6 {[%clk 0:02:51.2]} 45. Kc2 {[%clk 0:01:42.1]} 45... c5 {[%clk
0:02:50.8]} 46. Kd3 {[%clk 0:00:21.3]} 46... Kc6 {[%clk 0:02:43.7]} 47. a4
{[%clk 0:00:08.7]} 47... c4+ {[%clk 0:02:38.7]} 48. Kc2 {[%clk 0:00:06.7]} 48...
cxb3+ {[%clk 0:02:29]} 49. Kxb3 {[%clk 0:00:07.8]} 49... Nc5+ {[%clk 0:02:30]}
50. Bxc5 {[%clk 0:00:05.9]} 50... Kxc5 {[%clk 0:02:31]} 0-1

[Event "GrandPrix_30.05"]
[Site "Chess.com"]
[Date "2020.05.30"]
[Round "2"]
[White "Misterlose0"]
[Black "PavelShkapenko"]
[Result "0-1"]
[WhiteElo "1868"]
[BlackElo "2418"]
[TimeControl "600+2"]
[EndTime "8:52:45 PDT"]
[Termination "PavelShkapenko won on time"]

1. d4 {[%clk 0:09:59.1]} 1... Nf6 {[%clk 0:10:00.7]} 2. c4 {[%clk 0:10:00.2]}
2... e6 {[%clk 0:10:02]} 3. Nc3 {[%clk 0:10:00.4]} 3... Bb4 {[%clk 0:10:02.7]}
4. a3 {[%clk 0:10:01.4]} 4... Bxc3+ {[%clk 0:10:01.6]} 5. bxc3 {[%clk
0:10:03.3]} 5... c5 {[%clk 0:09:56.7]} 6. f3 {[%clk 0:09:56.5]} 6... Nc6 {[%clk
0:08:46]} 7. e4 {[%clk 0:09:55]} 7... O-O {[%clk 0:08:47.1]} 8. Be3 {[%clk
0:09:53.3]} 8... d5 {[%clk 0:08:37]} 9. cxd5 {[%clk 0:09:52.9]} 9... exd5 {[%clk
0:08:38.6]} 10. e5 {[%clk 0:09:54.8]} 10... Nd7 {[%clk 0:08:39.9]} 11. f4 {[%clk
0:09:41.4]} 11... Qa5 {[%clk 0:08:40.8]} 12. Qd2 {[%clk 0:09:39.4]} 12... cxd4
{[%clk 0:08:28.6]} 13. cxd4 {[%clk 0:09:41.3]} 13... Qxd2+ {[%clk 0:08:29.5]}
14. Kxd2 {[%clk 0:09:43.2]} 14... Nb6 {[%clk 0:08:30.9]} 15. Nf3 {[%clk
0:09:38.7]} 15... Na5 {[%clk 0:08:11.3]} 16. Bd3 {[%clk 0:09:36.7]} 16... Nb3+
{[%clk 0:08:01.4]} 17. Ke2 {[%clk 0:09:38.6]} 17... Nxa1 {[%clk 0:08:01.8]} 18.
Rxa1 {[%clk 0:09:40.5]} 18... Bg4 {[%clk 0:08:02.9]} 19. h3 {[%clk 0:09:08.6]}
19... Bxf3+ {[%clk 0:08:04]} 20. Kxf3 {[%clk 0:09:10]} 20... Rac8 {[%clk
0:08:05.5]} 21. Bd2 {[%clk 0:09:11.5]} 21... Nc4 {[%clk 0:07:38.8]} 22. Bb4
{[%clk 0:09:12]} 22... Rfe8 {[%clk 0:07:40.3]} 23. Rb1 {[%clk 0:09:01.8]} 23...
b6 {[%clk 0:07:38]} 24. a4 {[%clk 0:08:53.1]} 24... f6 {[%clk 0:07:05.6]} 25.
Bf5 {[%clk 0:07:31.7]} 25... Rc7 {[%clk 0:07:04.3]} 26. g4 {[%clk 0:06:35.1]}
26... Rf7 {[%clk 0:05:59]} 27. e6 {[%clk 0:05:08.8]} 27... Rc7 {[%clk
0:05:57.5]} 28. Re1 {[%clk 0:05:09.4]} 28... a5 {[%clk 0:04:52.3]} 29. Bc3
{[%clk 0:04:36.8]} 29... Rce7 {[%clk 0:04:52.8]} 30. g5 {[%clk 0:03:16.8]} 30...
Nd6 {[%clk 0:03:17.4]} 31. gxf6 {[%clk 0:02:53]} 31... gxf6 {[%clk 0:03:18.5]}
32. Bg4 {[%clk 0:02:14.5]} 32... Rc8 {[%clk 0:03:00.6]} 33. Bb2 {[%clk
0:01:55.6]} 33... Rc2 {[%clk 0:02:07.1]} 34. Bc1 {[%clk 0:00:51.4]} 34... Rc3+
{[%clk 0:01:39]} 35. Kf2 {[%clk 0:00:02.7]} 35... f5 {[%clk 0:01:32.2]} 36. Bd2
{[%clk 0:00:02.5]} 36... Rc2 {[%clk 0:01:27.2]} 0-1

[Event "GrandPrix_30.05"]
[Site "Chess.com"]
[Date "2020.05.30"]
[Round "2"]
[White "Onischuk_V"]
[Black "OhanyanEminChess"]
[Result "1-0"]
[WhiteElo "2480"]
[BlackElo "2099"]
[TimeControl "600+2"]
[EndTime "8:52:49 PDT"]
[Termination "Onischuk_V won on time"]

1. e4 {[%clk 0:09:55.6]} 1... e5 {[%clk 0:10:00.7]} 2. Nf3 {[%clk 0:09:51.8]}
2... Nc6 {[%clk 0:10:01.5]} 3. Bc4 {[%clk 0:09:48.5]} 3... Nf6 {[%clk
0:10:01.8]} 4. d3 {[%clk 0:09:34.2]} 4... Bc5 {[%clk 0:10:02.1]} 5. O-O {[%clk
0:09:34.4]} 5... d6 {[%clk 0:09:38.8]} 6. c3 {[%clk 0:09:33.2]} 6... O-O {[%clk
0:09:36]} 7. Nbd2 {[%clk 0:09:29]} 7... a6 {[%clk 0:09:34.4]} 8. Bb3 {[%clk
0:09:29.2]} 8... h6 {[%clk 0:09:34]} 9. h3 {[%clk 0:09:24.4]} 9... Be6 {[%clk
0:08:51.6]} 10. Bc2 {[%clk 0:09:18]} 10... d5 {[%clk 0:08:06.1]} 11. Re1 {[%clk
0:09:06.4]} 11... Re8 {[%clk 0:07:20.5]} 12. exd5 {[%clk 0:08:48.4]} 12... Bxd5
{[%clk 0:06:38.3]} 13. Ne4 {[%clk 0:08:46.7]} 13... Nxe4 {[%clk 0:06:16.7]} 14.
dxe4 {[%clk 0:08:46.4]} 14... Be6 {[%clk 0:05:46.7]} 15. Qe2 {[%clk 0:08:45.3]}
15... Qe7 {[%clk 0:05:30.3]} 16. b4 {[%clk 0:08:43.5]} 16... Bd6 {[%clk
0:04:41.5]} 17. Be3 {[%clk 0:08:43.6]} 17... f6 {[%clk 0:04:21.7]} 18. Nd2
{[%clk 0:07:57.5]} 18... Qf7 {[%clk 0:04:08.8]} 19. Bb3 {[%clk 0:07:24.7]} 19...
a5 {[%clk 0:03:32.2]} 20. Bxe6 {[%clk 0:06:45]} 20... Qxe6 {[%clk 0:03:31.3]}
21. b5 {[%clk 0:06:46.1]} 21... Nb8 {[%clk 0:03:26.1]} 22. Nc4 {[%clk
0:06:45.2]} 22... Be7 {[%clk 0:03:13.2]} 23. Rad1 {[%clk 0:06:39.4]} 23... Nd7
{[%clk 0:03:12.2]} 24. Rd5 {[%clk 0:06:29.8]} 24... b6 {[%clk 0:02:59.9]} 25.
Red1 {[%clk 0:06:24.8]} 25... Nc5 {[%clk 0:03:00.7]} 26. Bxc5 {[%clk 0:06:21.9]}
26... Bxc5 {[%clk 0:03:02.6]} 27. a4 {[%clk 0:06:18.8]} 27... c6 {[%clk
0:02:21.9]} 28. bxc6 {[%clk 0:05:28.4]} 28... Qxc6 {[%clk 0:02:23.8]} 29. Qa2
{[%clk 0:05:23.3]} 29... Qe6 {[%clk 0:02:09.5]} 30. Nd2 {[%clk 0:04:48.5]} 30...
Kh8 {[%clk 0:01:47.8]} 31. Nf3 {[%clk 0:04:46.6]} 31... f5 {[%clk 0:01:30]} 32.
Qc2 {[%clk 0:04:04.8]} 32... Qf6 {[%clk 0:01:22.2]} 33. Re1 {[%clk 0:03:34.3]}
33... f4 {[%clk 0:00:36.1]} 34. Red1 {[%clk 0:03:34.6]} 34... g5 {[%clk
0:00:30.3]} 35. Qe2 {[%clk 0:03:32.8]} 35... h5 {[%clk 0:00:21.7]} 36. Ne1
{[%clk 0:03:13.1]} 36... Qg6 {[%clk 0:00:20.5]} 37. Nd3 {[%clk 0:03:00.9]} 37...
Bd6 {[%clk 0:00:13.7]} 38. Nxf4 {[%clk 0:02:40.1]} 38... gxf4 {[%clk 0:00:05]}
39. Rxd6 {[%clk 0:02:40.9]} 39... Qg5 {[%clk 0:00:06.8]} 40. Rxb6 {[%clk
0:02:36.5]} 40... Rg8 {[%clk 0:00:07.8]} 41. Qf3 {[%clk 0:02:37.1]} 41... Rac8
{[%clk 0:00:07.9]} 42. Rdd6 {[%clk 0:02:30.9]} 42... Kh7 {[%clk 0:00:03.5]} 43.
Rb7+ {[%clk 0:01:56]} 43... Kh8 {[%clk 0:00:04.1]} 44. h4 {[%clk 0:01:55.8]} 1-0

[Event "GrandPrix_30.05"]
[Site "Chess.com"]
[Date "2020.05.30"]
[Round "2"]
[White "jacky72"]
[Black "am00ss00"]
[Result "1-0"]
[WhiteElo "2233"]
[BlackElo "2048"]
[TimeControl "600+2"]
[EndTime "8:52:54 PDT"]
[Termination "jacky72 won by checkmate"]

1. d4 {[%clk 0:10:01.9]} 1... d5 {[%clk 0:09:59.5]} 2. c4 {[%clk 0:09:59.5]}
2... e6 {[%clk 0:09:59.3]} 3. Nc3 {[%clk 0:09:59.1]} 3... f5 {[%clk 0:09:59.8]}
4. Bf4 {[%clk 0:09:48.5]} 4... c6 {[%clk 0:09:59.4]} 5. e3 {[%clk 0:09:48.5]}
5... Bd6 {[%clk 0:09:59.8]} 6. Bxd6 {[%clk 0:09:40.8]} 6... Qxd6 {[%clk
0:10:01.7]} 7. Nf3 {[%clk 0:09:42.7]} 7... Nf6 {[%clk 0:10:01.5]} 8. Bd3 {[%clk
0:09:40.3]} 8... O-O {[%clk 0:10:01.1]} 9. O-O {[%clk 0:09:37.9]} 9... Bd7
{[%clk 0:09:58.8]} 10. Ne5 {[%clk 0:09:35.1]} 10... Be8 {[%clk 0:09:59]} 11.
cxd5 {[%clk 0:09:26.5]} 11... Nxd5 {[%clk 0:09:37.3]} 12. Qb3 {[%clk 0:09:21.6]}
12... b6 {[%clk 0:08:57.3]} 13. Rac1 {[%clk 0:09:15.7]} 13... Nd7 {[%clk
0:08:14.8]} 14. Nf3 {[%clk 0:07:20.4]} 14... Rc8 {[%clk 0:07:12.8]} 15. a3
{[%clk 0:07:03.3]} 15... Bh5 {[%clk 0:07:00.1]} 16. Nd2 {[%clk 0:06:50.8]} 16...
c5 {[%clk 0:06:46.1]} 17. Ba6 {[%clk 0:06:34.4]} 17... Rcd8 {[%clk 0:06:30.8]}
18. Nc4 {[%clk 0:06:26.8]} 18... Qe7 {[%clk 0:06:23.1]} 19. Nxd5 {[%clk
0:05:58.3]} 19... exd5 {[%clk 0:06:21.6]} 20. Nd2 {[%clk 0:06:00.2]} 20... c4
{[%clk 0:05:48.8]} 21. Qa4 {[%clk 0:05:50.7]} 21... Nf6 {[%clk 0:04:31.9]} 22.
b3 {[%clk 0:05:47.8]} 22... cxb3 {[%clk 0:04:04.8]} 23. Qxb3 {[%clk 0:05:47]}
23... Ne4 {[%clk 0:04:01.6]} 24. Nxe4 {[%clk 0:05:36.9]} 24... fxe4 {[%clk
0:04:01.9]} 25. Rc6 {[%clk 0:05:30.9]} 25... Rf5 {[%clk 0:03:23.3]} 26. Rfc1
{[%clk 0:05:18.9]} 26... Rdf8 {[%clk 0:03:11.5]} 27. Rc8 {[%clk 0:05:14.8]}
27... Qg5 {[%clk 0:02:57]} 28. Rxf8+ {[%clk 0:05:02.7]} 28... Rxf8 {[%clk
0:02:57.3]} 29. Rc7 {[%clk 0:04:36.8]} 29... Bf3 {[%clk 0:02:27.5]} 30. g3
{[%clk 0:04:36.3]} 30... Qf5 {[%clk 0:02:06.8]} 31. Qc2 {[%clk 0:03:34.8]} 31...
h5 {[%clk 0:01:51.5]} 32. Rxa7 {[%clk 0:03:21]} 32... h4 {[%clk 0:01:40.6]} 33.
Qc7 {[%clk 0:03:17.7]} 33... Qg5 {[%clk 0:00:56.4]} 34. Bb7 {[%clk 0:03:08.9]}
34... hxg3 {[%clk 0:00:51.3]} 35. Bxd5+ {[%clk 0:03:06.9]} 35... Kh8 {[%clk
0:00:50.7]} 36. Qxg3 {[%clk 0:02:58]} 36... Qh6 {[%clk 0:00:41.4]} 37. Ra8
{[%clk 0:02:07.7]} 37... Rxa8 {[%clk 0:00:29.1]} 38. Bxa8 {[%clk 0:02:09.6]}
38... Qe6 {[%clk 0:00:16.4]} 39. d5 {[%clk 0:01:59.2]} 39... Qc8 {[%clk
0:00:13.4]} 40. Bc6 {[%clk 0:01:55.4]} 40... Qf8 {[%clk 0:00:10.7]} 41. d6
{[%clk 0:01:42.4]} 41... Qf6 {[%clk 0:00:08.4]} 42. Qh3+ {[%clk 0:01:43.7]}
42... Kg8 {[%clk 0:00:07.7]} 43. Bd5+ {[%clk 0:01:45.1]} 43... Kf8 {[%clk
0:00:06.9]} 44. Qh8# {[%clk 0:01:45.7]} 1-0